[Event "Sautron op 16th"]
[Site "Sautron"]
[Date "2016.10.22"]
[Round "3.1"]
[White "Stets, Dmitry"]
[Black "Istratescu, Andrei"]
[Result "1/2-1/2"]
[ECO "C68"]
[WhiteElo "2436"]
[BlackElo "2600"]
[Annotator "RR"]
[PlyCount "52"]
[EventDate "2016.10.22"]
[EventType "swiss"]
[EventRounds "9"]
[EventCountry "FRA"]
[SourceTitle "EXT 2019"]
[Source "ChessBase"]
[SourceDate "2018.10.10"]
[SourceVersion "1"]
[SourceVersionDate "2018.10.10"]
[SourceQuality "1"]
[TimeControl "40/5400+30:1800+30"]
[WhiteClock "0:13:16"]
[BlackClock "0:35:11"]

1. e4 {[%emt 0:00:00]} e5 {[%emt 0:01:14]} 2. Nf3 {[%emt 0:00:00]} Nc6 {
[%emt 0:01:23]} 3. Bb5 {[%emt 0:00:57]} a6 {[%emt 0:01:05]} 4. Bxc6 {[%emt 0:
02:57]} dxc6 {[%emt 0:00:24]} 5. O-O {[%emt 0:00:06]} Bd6 {[%emt 0:01:35]} (
5... f6 {La grande ligne}) (5... Bg4) 6. d4 {[%emt 0:04:24]} exd4 {[%emt 0:01:
05]} 7. Qxd4 {[%emt 0:00:10]} f6 {[%emt 0:00:04]} 8. Nbd2 {[%emt 0:22:27][%cal
Gd2c4] La position est toujours théorique mais le MI a réfléchi plus de 20
mns} (8. Be3) (8. Re1) 8... Be6 {[%emt 0:01:41]} 9. b3 {[%emt 0:06:25]} Ne7 {
[%emt 0:08:00]} (9... Qe7 10. Nc4 Bc5 11. Qd3 Qd7 12. Qxd7+ Bxd7 13. Be3 Be7
14. Nd4 O-O-O 15. Rad1 Re8 16. f3 Bf8 17. Bf2 Nh6 18. Ne3 Nf7 19. Ne2 g6 20.
Nf4 Bg7 21. a4 Re7 22. Nd3 Kb8 23. Nc4 Bc8 24. a5 Rhe8 25. Nc5 f5 26. Bd4 Bxd4+
27. Rxd4 Ka7 28. exf5 Bxf5 29. Ne4 c5 30. Rd2 Bxe4 31. fxe4 Nd8 32. e5 Nc6 33.
Rd5 Nxe5 34. Rxc5 Nc6 35. Rd5 b5 36. axb6+ cxb6 37. Rd6 Kb7 38. Rff6 Rc8 39.
Rd2 {Nisipeanu,L (2683)-Carlsen,M (2850) Reykjavik 2015 1/2-1/2}) 10. Nc4 {
[%emt 0:02:19]} Bxc4 {[%emt 0:01:39]} (10... Bb4 11. Qe3 (11. Qxd8+ Rxd8 12.
Bb2) 11... Bxc4 $132) 11. Qxc4 $14 {[%emt 0:01:15]} Ng6 {[%emt 0:02:21]} 12.
Qe6+ {[%emt 0:15:28] Une nouveauté trouvée devant l'échiquier} Qe7 {[%emt 0:
02:16]} 13. Qxe7+ {[%emt 0:00:06]} Kxe7 {[%emt 0:01:20]} 14. Nd4 {[%emt 0:01:
01][%cal Gf2f4,Gd4f5]} Kf7 {[%emt 0:02:05]} 15. Be3 {[%emt 0:00:39]} Rhe8 $132
{[%emt 0:08:18]} 16. f3 {[%emt 0:00:58]} Ne7 {[%emt 0:01:20]} (16... Nf4) 17.
Kf2 {[%emt 0:00:45]} c5 {[%emt 0:01:46]} 18. Nf5 $5 {[%emt 0:10:24]} Nxf5 {
[%emt 0:02:00]} 19. exf5 {[%emt 0:00:05]} Bxh2 $5 {[%emt 0:08:13] Un choix
courageux car après la poussée "f4",le Bh2 risque d'être enfermé. Ce coup
rappelle le fameux Bh2 joué par Fischer contre Spassky en Championnat du Monde
} 20. f4 {[%emt 0:15:25][%cal Gf1h1]} (20. g3 Bxg3+ {[%cal Ge8e3]}) 20... h5 $1
{[%emt 0:03:43][%cal Gh5h4,Gh2g3]} 21. Rad1 {[%emt 0:01:26]} (21. Rh1 Bg3+ $1
22. Kf3 h4) 21... h4 {[%emt 0:09:16]} 22. Rd7+ {[%emt 0:01:31]} Re7 {[%emt 0:
00:28]} 23. Rxe7+ {[%emt 0:00:11]} Kxe7 {[%emt 0:00:28]} 24. Bxc5+ {[%emt 0:00:
06]} Kd7 {[%emt 0:00:02]} (24... Kf7) 25. Rd1+ {[%emt 0:00:32]} Kc6 {[%emt 0:
01:21]} 26. Be3 {[%emt 0:00:07]} a5 {[%emt 0:04:42] Le plateau DGT a
enregsitré à tort 27.Bc5 qui n'a pas été joué} 1/2-1/2